fUST/lending_fUST_20250421
["ID","MTS","AMOUNT","RATE_DAILY","PERIOD"]
[358542261,1745243443215,-500.0,0.00021998,2]
[358542264,1745243443226,-500.0,0.00021998,2]
[358542267,1745243443236,-500.0,0.00021998,2]
[358542269,1745243443245,-6568.46,0.00021999,2]
[358542272,1745243443256,-500.0,0.00021999,2]
[358542275,1745243443266,-178.64367383,0.00021999,2]
[358542278,1745243443289,-321.35632617,0.00021999,2]
[358542280,1745243443299,-500.0,0.00021999,2]
[358542283,1745243443309,-500.0,0.00021999,2]
[358542287,1745243443319,-500.0,0.00021999,2]
[358542290,1745243443329,-500.0,0.00021999,2]
[358542293,1745243443338,-500.0,0.00021999,2]
[358542296,1745243443348,-500.0,0.00021999,2]
[358542299,1745243443358,-524.98448047,0.00021999,2]
[358542301,1745243443367,-500.0,0.00021999,2]
[358542303,1745243443376,-500.0,0.00021999,2]
[358542305,1745243443385,-160.0,0.00021999,2]
[358542307,1745243443394,-151.0,0.00022054,2]
[358542309,1745243443404,-500.0,0.00022054,2]
[358542311,1745243443413,-151.86947762,0.00022054,2]
[358542313,1745243443422,-500.0,0.00022054,2]
[358542315,1745243443431,-199.48579549,0.00022054,2]
[358542317,1745243443440,-246.45003749,0.00022054,2]
[358542319,1745243443450,-162.32983011,0.00022069,2]
[358542321,1745243443460,-500.0,0.00022134,2]
[358542323,1745243443470,-294.87005724,0.00022173,2]
[358542337,1745243443589,-500.0,0.00021917,2]
[358542339,1745243443599,-205.12994276,0.00022173,2]
[358542341,1745243443609,-500.0,0.00022173,2]
[358542343,1745243443618,-500.0,0.00022173,2]
[358542345,1745243443627,-158.86769169,0.00022173,2]
[358542348,1745243443639,-341.13230831,0.00022173,2]
[358542350,1745243443648,-500.0,0.00022173,2]
[358542352,1745243443658,-300.0,0.00022173,2]
[358542353,1745243443667,-500.0,0.00022173,2]
[358542354,1745243443677,-500.0,0.00022173,2]
[358542355,1745243443686,-500.0,0.00022173,2]
[358542356,1745243443695,-500.0,0.00022173,2]
[358542357,1745243443704,-500.0,0.00022187,2]
[358542358,1745243443713,-500.0,0.0002219,2]
[358542359,1745243443723,-500.0,0.0002219,2]
[358542360,1745243443732,-151.0,0.00022191,2]
[358542361,1745243443741,-500.0,0.00022191,2]
[358542362,1745243443750,-500.0,0.00022191,2]
[358542363,1745243443759,-500.0,0.00022191,2]
[358542365,1745243443769,-500.0,0.00022191,2]
[358542367,1745243443779,-500.0,0.00022191,2]
[358542369,1745243443801,-500.0,0.00022191,2]
[358542371,1745243443824,-500.0,0.00022191,2]
[358542374,1745243443846,-500.0,0.00022191,2]
[358542376,1745243443866,-500.0,0.00022191,2]
[358542378,1745243443886,-500.0,0.00022191,2]
[358542380,1745243443906,-500.0,0.00022191,2]
[358542381,1745243443928,-500.57455695,0.00022191,2]
[358542385,1745243443952,-500.0,0.00022191,2]
[358542388,1745243443974,-500.0,0.00022191,2]
[358542391,1745243443994,-500.0,0.00022191,2]
[358542393,1745243444009,-167.87,0.00022191,2]
[358542397,1745243444019,-500.0,0.00022191,2]
[358542413,1745243444117,-500.0,0.00022191,2]
[358542415,1745243444127,-500.0,0.00022191,2]
[358542417,1745243444137,-500.0,0.00022191,2]
[358542419,1745243444145,-500.0,0.00022191,2]
[358542421,1745243444155,-500.0,0.00022191,2]
[358542423,1745243444164,-500.0,0.00022191,2]
[358542425,1745243444173,-500.0,0.00022191,2]
[358542427,1745243444182,-500.0,0.00022191,2]
[358542429,1745243444192,-569.02903026,0.00022191,2]
[358542431,1745243444202,-381.3855356,0.00022191,2]
[358542433,1745243444211,-500.0,0.00022191,2]
[358542435,1745243444220,-500.0,0.00022191,2]
[358542436,1745243444229,-500.0,0.00022191,2]
[358542439,1745243444239,-500.0,0.00022191,2]
[358542441,1745243444248,-500.0,0.00022191,2]
[358542443,1745243444258,-500.0,0.00022191,2]
[358542445,1745243444268,-76.41927285,0.00022191,2]
[358542457,1745243444375,-178.93072715,0.00022191,2]
[358542459,1745243444384,-500.0,0.00022191,2]
[358542461,1745243444394,-500.0,0.00022191,2]
[358542463,1745243444403,-500.0,0.00022191,2]
[358542465,1745243444412,-500.0,0.00022191,2]
[358542467,1745243444421,-500.0,0.00022191,2]
[358542469,1745243444430,-611.44423951,0.00022191,2]
[358542471,1745243444439,-500.0,0.00022191,2]
[358542473,1745243444448,-500.0,0.00022191,2]
[358542475,1745243444458,-500.0,0.00022191,2]
[358542477,1745243444468,-230.34157984,0.00022191,2]
[358542479,1745243444478,-500.0,0.00022191,2]
[358542481,1745243444487,-500.0,0.00022191,2]
[358542483,1745243444497,-500.0,0.00022191,2]
[358542485,1745243444506,-500.0,0.00022191,2]
[358542487,1745243444515,-500.0,0.00022191,2]
[358542489,1745243444525,-500.0,0.00022191,2]
[358542491,1745243444534,-212.38,0.00022191,2]
[358542493,1745243444543,-500.0,0.00022191,2]
[358542495,1745243444552,-5202.56,0.00022191,2]
[358542496,1745243444562,-500.0,0.00022191,2]
[358542498,1745243444572,-500.0,0.00022191,2]
[358542500,1745243444581,-267.39,0.00022191,2]
[358542501,1745243444590,-500.0,0.00022191,2]
[358542503,1745243444599,-254.91,0.00022191,2]
[358542504,1745243444608,-599.51964485,0.00022191,2]
[358542506,1745243444618,-500.0,0.00022191,2]
[358542507,1745243444626,-500.0,0.00022191,2]
[358542509,1745243444635,-500.0,0.00022191,2]
[358542510,1745243444645,-1365.07,0.00022191,2]
[358542512,1745243444654,-500.0,0.00022191,2]
[358542513,1745243444663,-500.0,0.00022191,2]
[358542515,1745243444672,-500.0,0.00022191,2]
[358542517,1745243444682,-500.0,0.00022191,2]
[358542518,1745243444691,-500.0,0.00022191,2]
[358542520,1745243444700,-500.0,0.00022191,2]
[358542521,1745243444711,-500.0,0.00022191,2]
[358542523,1745243444720,-500.0,0.00022191,2]
[358542524,1745243444730,-849.44,0.00022191,2]
[358542526,1745243444739,-500.0,0.00022191,2]
[358542527,1745243444748,-500.0,0.00022191,2]
[358542529,1745243444758,-500.0,0.00022191,2]
[358542531,1745243444767,-2919.09,0.00022191,2]
[358542532,1745243444776,-500.0,0.00022191,2]
[358542534,1745243444786,-461.89,0.00022191,2]
[358542536,1745243444796,-500.0,0.00022191,2]
[358542537,1745243444805,-500.0,0.00022191,2]
[358542539,1745243444814,-301.71,0.00022191,2]
[358542540,1745243444823,-500.0,0.00022191,2]
[358542542,1745243444832,-500.0,0.00022191,2]
[358542544,1745243444842,-500.0,0.00022191,2]
[358542546,1745243444851,-500.0,0.00022191,2]
[358542547,1745243444861,-500.0,0.00022191,2]
[358542549,1745243444871,-500.0,0.00022191,2]
[358542551,1745243444880,-752.53,0.00022191,2]
[358542552,1745243444889,-500.0,0.00022191,2]
[358542554,1745243444899,-500.0,0.00022191,2]
[358542555,1745243444908,-736.91,0.00022191,2]
[358542557,1745243444921,-500.0,0.00022191,2]
[358542559,1745243444930,-500.0,0.00022191,2]
[358542560,1745243444940,-500.0,0.00022191,2]
[358542562,1745243444951,-500.0,0.00022191,2]
[358542564,1745243444961,-500.0,0.00022191,2]
[358542565,1745243444971,-500.0,0.00022191,2]
[358542567,1745243444981,-500.0,0.00022191,2]
[358542569,1745243444991,-500.0,0.00022191,2]
[358542570,1745243445000,-500.0,0.00022191,2]
[358542572,1745243445010,-314.45,0.00022191,2]
[358542574,1745243445020,-322.89,0.00022191,2]
[358542575,1745243445029,-1438.62,0.00022191,2]
[358542577,1745243445039,-444.45855009,0.00022191,2]
[358542579,1745243445049,-500.0,0.00022191,2]
[358542580,1745243445058,-3898.24,0.00022191,2]
[358542582,1745243445068,-1209.97,0.00022191,2]
[358542584,1745243445078,-500.0,0.00022191,2]
[358542585,1745243445087,-500.0,0.00022271,2]
[358542587,1745243445096,-500.0,0.00022271,2]
[358542589,1745243445106,-500.0,0.00022272,2]
[358542590,1745243445115,-500.0,0.00022272,2]
[358542592,1745243445126,-542.83401299,0.00022272,2]
[358542594,1745243445146,-500.0,0.00022272,2]
[358542595,1745243445170,-500.0,0.00022272,2]
[358542597,1745243445192,-500.0,0.00022272,2]
[358542599,1745243445219,-601.92490994,0.00022272,2]
[358542601,1745243445248,-500.0,0.00022272,2]
[358542603,1745243445272,-279.7,0.00022272,2]
[358542604,1745243445294,-500.0,0.00022272,2]
[358542606,1745243445318,-500.0,0.00022272,2]
[358542608,1745243445329,-500.0,0.00022272,2]
[358542609,1745243445339,-500.0,0.00022272,2]
[358542611,1745243445348,-500.0,0.00022272,2]
[358542613,1745243445357,-724.52,0.00022272,2]
[358542614,1745243445366,-500.0,0.00022272,2]
[358542616,1745243445376,-500.0,0.00022272,2]
[358542618,1745243445385,-500.0,0.00022272,2]
[358542619,1745243445394,-500.0,0.00022272,2]
[358542621,1745243445404,-756.94,0.00022272,2]
[358542622,1745243445414,-500.0,0.00022272,2]
[358542624,1745243445423,-500.0,0.00022272,2]
[358542626,1745243445432,-340.02,0.00022272,2]
[358542627,1745243445442,-500.0,0.00022272,2]
[358542629,1745243445451,-184.51,0.00022272,2]
[358542631,1745243445460,-500.0,0.00022272,2]
[358542632,1745243445469,-500.0,0.00022272,2]
[358542634,1745243445479,-596.58,0.00022272,2]
[358542636,1745243445488,-538.28,0.00022272,2]
[358542637,1745243445497,-500.0,0.00022272,2]
[358542639,1745243445507,-500.0,0.00022272,2]
[358542641,1745243445515,-194.39,0.00022272,2]
[358542642,1745243445524,-500.0,0.00022272,2]
[358542644,1745243445534,-500.0,0.00022272,2]
[358542646,1745243445543,-360.37,0.00022272,2]
[358542647,1745243445552,-500.0,0.00022272,2]
[358542649,1745243445561,-500.0,0.00022272,2]
[358542651,1745243445571,-500.0,0.00022272,2]
[358542652,1745243445581,-6568.46,0.00022273,2]
[358542654,1745243445591,-162.32983011,0.0002232,2]
[358542656,1745243445600,-151.0,0.00022328,2]
[358542657,1745243445610,-500.0,0.00022328,2]
[358542659,1745243445620,-501.89404873,0.00022328,2]
[358542661,1745243445629,-709.491555,0.00022336,2]
[358542662,1745243445638,-500.0,0.00022408,2]
[358542664,1745243445647,-500.0,0.00022464,2]
[358542666,1745243445657,-273.54287354,0.00022465,2]
[358542667,1745243445666,-500.0,0.00022465,2]
[358542669,1745243445675,-500.0,0.00022465,2]
[358542671,1745243445684,-500.0,0.00022465,2]
[358542672,1745243445694,-500.0,0.00022465,2]
[358542674,1745243445703,-418.39,0.00022465,2]
[358542676,1745243445714,-500.0,0.00022465,2]
[358542677,1745243445723,-494.72,0.00022465,2]
[358542679,1745243445733,-500.0,0.00022465,2]
[358542680,1745243445742,-500.0,0.00022465,2]
[358542681,1745243445751,-500.0,0.00022465,2]
[358542682,1745243445760,-500.0,0.00022465,2]
[358542683,1745243445770,-500.0,0.00022465,2]
[358542684,1745243445779,-294.54,0.00022465,2]
[358542685,1745243445788,-500.0,0.00022465,2]
[358542686,1745243445797,-500.0,0.00022465,2]
[358542687,1745243445806,-500.0,0.00022465,2]
[358542688,1745243445816,-5202.56,0.00022465,2]
[358542689,1745243445825,-500.0,0.00022465,2]
[358542690,1745243445834,-386.02334222,0.00022465,2]
[358542691,1745243445843,-500.0,0.00022465,2]
[358542692,1745243445852,-500.0,0.00022465,2]
[358542693,1745243445861,-500.0,0.00022465,2]
[358542694,1745243445871,-500.0,0.00022465,2]
[358542695,1745243445880,-1365.07,0.00022465,2]
[358542697,1745243445890,-500.0,0.00022465,2]
[358542698,1745243445899,-500.0,0.00022465,2]
[358542700,1745243445908,-500.0,0.00022465,2]
[358542702,1745243445918,-500.0,0.00022465,2]
[358542704,1745243445927,-500.0,0.00022465,2]
[358542706,1745243445936,-849.44,0.00022465,2]
[358542708,1745243445946,-500.0,0.00022465,2]
[358542710,1745243445959,-500.0,0.00022465,2]
[358542712,1745243445968,-2919.09,0.00022465,2]
[358542714,1745243445978,-561.54,0.00022465,2]
[358542716,1745243445987,-500.0,0.00022465,2]
[358542718,1745243445998,-500.0,0.00022465,2]
[358542720,1745243446009,-500.0,0.00022465,2]
[358542722,1745243446018,-500.0,0.00022465,2]
[358542724,1745243446028,-500.0,0.00022465,2]
[358542726,1745243446037,-500.0,0.00022465,2]
[358542728,1745243446046,-500.0,0.00022465,2]
[358542730,1745243446056,-752.53,0.00022465,2]
[358542733,1745243446065,-500.0,0.00022465,2]
[358542735,1745243446074,-500.0,0.00022465,2]
[358542737,1745243446083,-736.91,0.00022465,2]
[358542739,1745243446092,-500.0,0.00022465,2]
[358542741,1745243446101,-500.0,0.00022465,2]
[358542744,1745243446110,-500.0,0.00022465,2]
[358542760,1745243446120,-500.0,0.00022465,2]
[358542762,1745243446218,-500.0,0.00022465,2]
[358542764,1745243446227,-500.0,0.00022465,2]
[358542766,1745243446237,-500.0,0.00022465,2]
[358542768,1745243446246,-1438.62,0.00022465,2]
[358542770,1745243446255,-500.0,0.00022465,2]
[358542772,1745243446264,-3898.24,0.00022465,2]
[358542774,1745243446272,-1209.97,0.00022465,2]
[358542777,1745243446282,-500.0,0.00022545,2]
[358542779,1745243446292,-500.04,0.00022545,2]
[358542781,1745243446301,-500.0,0.00022546,2]
[358542783,1745243446310,-500.0,0.00022546,2]
[358542785,1745243446320,-500.0,0.00022546,2]
[358542787,1745243446329,-724.52,0.00022546,2]
[358542789,1745243446339,-500.0,0.00022546,2]
[358542791,1745243446348,-500.0,0.00022546,2]
[358542793,1745243446358,-500.0,0.00022546,2]
[358542795,1745243446367,-756.94,0.00022546,2]
[358542797,1745243446377,-500.0,0.00022546,2]
[358542799,1745243446386,-510.77,0.00022546,2]
[358542801,1745243446396,-500.0,0.00022546,2]
[358542803,1745243446405,-596.58,0.00022546,2]
[358542805,1745243446415,-500.0,0.00022546,2]
[358542808,1745243446424,-500.0,0.00022546,2]
[358542810,1745243446434,-500.0,0.00022546,2]
[358542812,1745243446444,-500.0,0.00022546,2]
[358542814,1745243446455,-500.0,0.00022546,2]
[358542816,1745243446465,-500.0,0.00022546,2]
[358542818,1745243446474,-6568.46,0.00022547,2]
[358542820,1745243446483,-162.32983011,0.00022572,2]
[358542822,1745243446493,-500.0,0.00022682,2]
[358542824,1745243446503,-500.0,0.00022739,2]
[358542826,1745243446512,-500.0,0.00022739,2]
[358542828,1745243446521,-500.0,0.00022739,2]
[358542830,1745243446530,-500.0,0.00022739,2]
[358542832,1745243446539,-232.58834975,0.00022739,2]
[358542834,1745243446549,-500.0,0.00022739,2]
[358542836,1745243446558,-500.0,0.00022739,2]
[358542838,1745243446567,-500.0,0.00022739,2]
[358542840,1745243446576,-500.0,0.00022739,2]
[358542842,1745243446585,-500.0,0.00022739,2]
[358542844,1745243446595,-500.0,0.00022739,2]
[358542846,1745243446604,-5202.56,0.00022739,2]
[358542848,1745243446613,-500.0,0.00022739,2]
[358542850,1745243446623,-500.0,0.00022739,2]
[358542852,1745243446632,-589.49520417,0.00022739,2]
[358542854,1745243446641,-1365.07,0.00022739,2]
[358542856,1745243446651,-405.99161107,0.00022739,2]
[358542858,1745243446661,-500.0,0.00022739,2]
[358542860,1745243446672,-500.0,0.00022739,2]
[358542862,1745243446682,-849.44,0.00022739,2]
[358542864,1745243446691,-500.0,0.00022739,2]
[358542867,1745243446700,-2919.09,0.00022739,2]
[358542869,1745243446709,-500.0,0.00022739,2]
[358542871,1745243446718,-500.0,0.00022739,2]
[358542873,1745243446728,-575.89473422,0.00022739,2]
[358542875,1745243446737,-283.82148938,0.00022739,2]
[358542877,1745243446746,-500.0,0.00022739,2]
[358542879,1745243446755,-500.0,0.00022739,2]
[358542881,1745243446764,-752.53,0.00022739,2]
[358542883,1745243446773,-500.0,0.00022739,2]
[358542885,1745243446783,-736.91,0.00022739,2]
[358542887,1745243446792,-500.0,0.00022739,2]
[358542889,1745243446801,-500.0,0.00022739,2]
[358542891,1745243446810,-500.0,0.00022739,2]
[358542893,1745243446819,-523.01,0.00022739,2]
[358542895,1745243446828,-500.0,0.00022739,2]
[358542897,1745243446838,-500.0,0.00022739,2]
[358542899,1745243446847,-1438.62,0.00022739,2]
[358542901,1745243446857,-500.0,0.00022739,2]
[358542903,1745243446866,-3898.24,0.00022739,2]
[358542905,1745243446875,-1209.97,0.00022739,2]
[358542907,1745243446884,-500.0,0.00022764,2]
[358542909,1745243446893,-565.60613541,0.00022764,2]
[358542911,1745243446903,-500.0,0.00022764,2]
[358542913,1745243446912,-500.0,0.00022764,2]
[358542915,1745243446921,-500.0,0.00022764,2]
[358542917,1745243446931,-500.0,0.00022764,2]
[358542919,1745243446940,-500.0,0.00022764,2]
[358542922,1745243446953,-500.0,0.00022764,2]
[358542924,1745243446962,-500.0,0.00022764,2]
[358542926,1745243446971,-729.16666667,0.00022815,2]
[358542928,1745243446980,-160.0,0.00022815,2]
[358542930,1745243446990,-420.65680271,0.00022815,2]
[358542932,1745243447000,-160.0,0.00022815,2]
[358542934,1745243447009,-160.0,0.00022815,2]
[358542936,1745243447018,-160.0,0.00022815,2]
[358542938,1745243447029,-500.0,0.00022819,2]
[358542940,1745243447039,-500.0,0.0002282,2]
[358542942,1745243447048,-524.93038541,0.0002282,2]
[358542944,1745243447057,-500.0,0.0002282,2]
[358542946,1745243447065,-724.52,0.0002282,2]
[358542948,1745243447075,-500.0,0.0002282,2]
[358542950,1745243447084,-756.94,0.0002282,2]
[358542952,1745243447093,-500.0,0.0002282,2]
[358542954,1745243447102,-260.84,0.0002282,2]
[358542956,1745243447111,-596.58,0.0002282,2]
[358542958,1745243447120,-500.0,0.0002282,2]
[358542960,1745243447129,-164.01963961,0.0002282,2]
[358542962,1745243447138,-6568.46,0.00022821,2]
[358542964,1745243447147,-162.32983011,0.00022823,2]
[358542966,1745243447156,-421.86451792,0.000229,2]
[358542968,1745243447166,-207.9118896,0.000229,2]
[358542970,1745243447174,-1461.11353969,0.000229,4]
[358542972,1745243447183,-500.0,0.00022927,2]
[358542974,1745243447192,-500.0,0.00022956,2]
[358542976,1745243447202,-500.0,0.00023013,2]
[358542978,1745243447211,-500.0,0.00023013,2]
[358542980,1745243447226,-500.0,0.00023013,2]
[358542982,1745243447235,-500.0,0.00023013,2]
[358542984,1745243447244,-500.0,0.00023013,2]
[358542986,1745243447254,-500.0,0.00023013,2]
[358542988,1745243447263,-395.42,0.00023013,2]
[358542990,1745243447272,-500.0,0.00023013,2]
[358542991,1745243447281,-500.0,0.00023013,2]
[358542993,1745243447290,-5202.56,0.00023013,2]
[358542995,1745243447299,-500.0,0.00023013,2]
[358542998,1745243447308,-386.19518915,0.00023013,2]
[358542999,1745243447317,-1365.07,0.00023013,2]
[358543001,1745243447326,-542.09,0.00023013,2]
[358543003,1745243447335,-298.65,0.00023013,2]
[358543005,1745243447343,-849.44,0.00023013,2]
[358543007,1745243447352,-500.0,0.00023013,2]
[358543009,1745243447361,-2919.09,0.00023013,2]
[358543011,1745243447370,-500.0,0.00023013,2]
[358543014,1745243447381,-500.0,0.00023013,2]
[358543016,1745243447390,-500.0,0.00023013,2]
[358543017,1745243447399,-500.0,0.00023013,2]
[358543019,1745243447407,-752.53,0.00023013,2]
[358543021,1745243447416,-500.0,0.00023013,2]
[358543023,1745243447425,-736.91,0.00023013,2]
[358543025,1745243447434,-500.0,0.00023013,2]
[358543027,1745243447443,-386.48,0.00023013,2]
[358543030,1745243447452,-500.0,0.00023013,2]
[358543031,1745243447462,-500.0,0.00023013,2]
[358543034,1745243447471,-1438.62,0.00023013,2]
[358543036,1745243447480,-500.0,0.00023013,2]
[358543038,1745243447489,-3898.24,0.00023013,2]
[358543039,1745243447498,-1209.97,0.00023013,2]
[358543042,1745243447507,-505.16503556,0.00023093,2]
[358543043,1745243447516,-500.0,0.00023094,2]
[358543046,1745243447525,-500.0,0.00023094,2]
[358543048,1745243447534,-724.52,0.00023094,2]
[358543050,1745243447543,-500.0,0.00023094,2]
[358543052,1745243447552,-756.94,0.00023094,2]
[358543053,1745243447561,-500.0,0.00023094,2]
[358543055,1745243447570,-596.58,0.00023094,2]
[358543058,1745243447579,-500.0,0.00023094,2]
[358543060,1745243447588,-6568.46,0.00023095,2]
[358543062,1745243447597,-500.0,0.00023287,2]
[358543064,1745243447606,-500.0,0.00023287,2]
[358543066,1745243447615,-500.0,0.00023287,2]
[358543068,1745243447624,-500.0,0.00023287,2]
[358543070,1745243447633,-563.71535579,0.00023287,2]
[358543072,1745243447642,-500.0,0.00023287,2]
[358543074,1745243447651,-500.0,0.00023287,2]
[358543076,1745243447660,-500.0,0.00023287,2]
[358543078,1745243447669,-5202.56,0.00023287,2]
[358543080,1745243447678,-500.0,0.00023287,2]
[358543082,1745243447687,-1365.07,0.00023287,2]
[358543084,1745243447696,-849.44,0.00023287,2]
[358543086,1745243447705,-500.0,0.00023287,2]
[358543088,1745243447714,-2919.09,0.00023287,2]
[358543090,1745243447723,-500.0,0.00023287,2]
[358543092,1745243447731,-500.0,0.00023287,2]
[358543094,1745243447740,-500.0,0.00023287,2]
[358543095,1745243447749,-500.0,0.00023287,2]
[358543096,1745243447758,-752.53,0.00023287,2]
[358543097,1745243447767,-500.0,0.00023287,2]
[358543098,1745243447777,-736.91,0.00023287,2]
[358543099,1745243447786,-500.0,0.00023287,2]
[358543100,1745243447796,-500.0,0.00023287,2]
[358543101,1745243447806,-500.0,0.00023287,2]
[358543102,1745243447815,-1438.62,0.00023287,2]
[358543103,1745243447824,-500.0,0.00023287,2]
[358543104,1745243447833,-3898.24,0.00023287,2]
[358543105,1745243447842,-1209.97,0.00023287,2]
[358543106,1745243447852,-500.0,0.00023312,2]
[358543108,1745243447861,-500.0,0.00023312,2]
[358543109,1745243447870,-500.0,0.00023312,2]
[358543111,1745243447878,-517.15891689,0.00023312,2]
[358543113,1745243447888,-500.0,0.00023312,2]
[358543115,1745243447897,-500.0,0.0002335,2]
[358543117,1745243447906,-500.0,0.00023368,2]
[358543119,1745243447915,-500.0,0.00023368,2]
[358543121,1745243447925,-724.52,0.00023368,2]
[358543123,1745243447934,-500.0,0.00023368,2]
[358543125,1745243447943,-756.94,0.00023368,2]
[358543128,1745243447956,-500.0,0.00023368,2]
[358543130,1745243447966,-596.58,0.00023368,2]
[358543132,1745243447975,-500.0,0.00023368,2]
[358543134,1745243447984,-6568.46,0.00023369,2]
[358543135,1745243447992,-160.0,0.00023369,2]
[358543137,1745243448002,-151.0,0.000234,8]
[358543139,1745243448011,-190.01712041,0.00023561,2]
[358543141,1745243448020,-500.0,0.00023561,2]
[358543143,1745243448030,-500.0,0.00023561,2]
[358543146,1745243448040,-500.0,0.00023561,2]
[358543156,1745243448132,-500.0,0.00023561,2]
[358543159,1745243448142,-326.67217317,0.00023561,2]
[358543161,1745243448152,-500.0,0.00023561,2]
[358543163,1745243448162,-5202.56,0.00023561,2]
[358543165,1745243448171,-500.0,0.00023561,2]
[358543167,1745243448181,-1365.07,0.00023561,2]
[358543169,1745243448191,-849.44,0.00023561,2]
[358543171,1745243448200,-500.0,0.00023561,2]
[358543173,1745243448209,-2919.09,0.00023561,2]
[358543175,1745243448219,-500.0,0.00023561,2]
[358543177,1745243448229,-500.0,0.00023561,2]
[358543179,1745243448238,-500.0,0.00023561,2]
[358543181,1745243448248,-500.0,0.00023561,2]
[358543183,1745243448258,-752.53,0.00023561,2]
[358543185,1745243448267,-500.0,0.00023561,2]
[358543187,1745243448276,-736.91,0.00023561,2]
[358543189,1745243448285,-500.0,0.00023561,2]
[358543191,1745243448295,-500.0,0.00023561,2]
[358543193,1745243448304,-500.0,0.00023561,2]
[358543195,1745243448313,-1438.62,0.00023561,2]
[358543197,1745243448322,-500.0,0.00023561,2]
[358543199,1745243448332,-3898.24,0.00023561,2]
[358543201,1745243448341,-1209.97,0.00023561,2]
[358543203,1745243448351,-500.0,0.00023565,2]
[358543205,1745243448360,-500.0,0.00023642,2]
[358543207,1745243448369,-500.0,0.00023642,2]
[358543209,1745243448378,-724.52,0.00023642,2]
[358543211,1745243448388,-559.68748754,0.00023642,2]
[358543213,1745243448397,-756.94,0.00023642,2]
[358543215,1745243448406,-500.0,0.00023642,2]
[358543218,1745243448415,-596.58,0.00023642,2]
[358543220,1745243448425,-349.28,0.00023642,2]
[358543222,1745243448434,-6568.46,0.00023643,2]
[358543224,1745243448443,-1461.11353953,0.00023693,4]
[358543226,1745243448452,-151.0,0.000237,10]
[358543228,1745243448462,-500.0,0.00023706,2]
[358543230,1745243448471,-500.0,0.00023709,2]
[358543232,1745243448479,-707.79685256,0.000238,2]
[358543234,1745243448488,-420.0,0.00023816,2]
[358543236,1745243448497,-600.0,0.00023816,2]
[358543238,1745243448506,-500.0,0.00023835,2]
[358543240,1745243448515,-191.140905,0.00023835,2]
[358543242,1745243448524,-500.0,0.00023835,2]
[358543244,1745243448533,-500.0,0.00023835,2]
[358543246,1745243448542,-500.0,0.00023835,2]
[358543248,1745243448550,-5202.56,0.00023835,2]
[358543250,1745243448559,-500.0,0.00023835,2]
[358543252,1745243448568,-1365.07,0.00023835,2]
[358543254,1745243448577,-849.44,0.00023835,2]
[358543256,1745243448586,-500.0,0.00023835,2]
[358543258,1745243448595,-2919.09,0.00023835,2]
[358543260,1745243448604,-510.68213966,0.00023835,2]
[358543262,1745243448613,-500.0,0.00023835,2]
[358543264,1745243448622,-500.0,0.00023835,2]